fUST/lending_fUST_20260120
["ID","MTS","AMOUNT","RATE_DAILY","PERIOD"]
[402739756,1768872640719,-496.47127164,0.00013446,2]
[402739757,1768872640727,-2398.4119403,0.00013446,2]
[402739758,1768872640737,-500.0,0.00013448,2]
[402739759,1768872640746,-500.0,0.00013485,2]
[402739760,1768872640756,-3876.0,0.00013496,2]
[402739761,1768872640765,-161.818721,0.00013514,2]
[402739762,1768872640775,-6083.44,0.00013523,2]
[402739763,1768872640785,-729.0,0.00013546,2]
[402739764,1768872640794,-729.0,0.00013572,2]
[402739765,1768872640803,-729.0,0.00013572,2]
[402739766,1768872640812,-729.0,0.00013592,2]
[402739767,1768872640821,-404.546804,0.00013592,2]
[402739768,1768872640831,-13564.18030675,0.000136,2]
[402739769,1768872640840,-159.62665952,0.00013645,2]
[402739770,1768872640850,-163.580399,0.00013647,2]
[402739771,1768872640859,-11730.88476807,0.00013659,2]
[402739772,1768872640868,-300.0,0.00013673,2]
[402739773,1768872640878,-1011.367008,0.00013696,2]
[402739774,1768872640888,-155.0,0.00013697,2]
[402739775,1768872640898,-500.0,0.00013698,2]
[402739776,1768872640907,-500.0,0.00013698,2]
[402739777,1768872640917,-500.0,0.00013698,2]
[402739778,1768872640927,-500.0,0.00013698,2]
[402739779,1768872640937,-500.0,0.00013698,2]
[402739780,1768872640946,-500.0,0.00013698,2]
[402739781,1768872640955,-500.0,0.00013698,2]
[402739782,1768872640965,-500.0,0.00013698,2]
[402739783,1768872640974,-500.0,0.00013698,2]
[402739784,1768872640984,-500.0,0.00013698,2]
[402739785,1768872640993,-500.0,0.00013698,2]
[402739786,1768872641003,-500.0,0.00013698,2]
[402739787,1768872641014,-500.0,0.00013698,2]
[402739788,1768872641024,-500.0,0.00013698,2]
[402739789,1768872641035,-500.0,0.00013698,2]
[402739790,1768872641045,-500.0,0.00013698,2]
[402739791,1768872641055,-500.0,0.00013698,2]
[402739792,1768872641065,-540.43466615,0.00013698,2]
[402739793,1768872641075,-500.0,0.00013698,2]
[402739794,1768872641086,-500.0,0.00013698,2]
[402739795,1768872641096,-500.0,0.00013698,2]
[402739796,1768872641106,-500.0,0.00013698,2]
[402739797,1768872641116,-500.0,0.00013698,2]
[402739798,1768872641125,-608.34129709,0.00013698,2]
[402739799,1768872641135,-500.0,0.00013698,2]
[402739800,1768872641146,-500.0,0.00013698,2]
[402739801,1768872641155,-500.13675319,0.00013698,2]
[402739802,1768872641165,-500.0,0.00013698,2]
[402739803,1768872641176,-500.0,0.00013698,2]
[402739804,1768872641185,-500.0,0.00013698,2]
[402739805,1768872641193,-500.0,0.00013698,2]
[402739806,1768872641202,-500.0,0.00013698,2]
[402739807,1768872641210,-500.0,0.00013698,2]
[402739808,1768872641218,-500.0,0.00013698,2]
[402739809,1768872641227,-500.0,0.00013698,2]
[402739810,1768872641236,-500.0,0.00013698,2]
[402739811,1768872641244,-500.0,0.00013698,2]
[402739812,1768872641253,-500.0,0.00013698,2]
[402739813,1768872641263,-307.48520335,0.00013698,2]
[402739814,1768872641272,-151.0,0.00013698,2]
[402739815,1768872641282,-151.0,0.00013698,2]
[402739816,1768872641292,-512.50802268,0.00013698,2]
[402739817,1768872641303,-1125.08,0.00013698,2]
[402739818,1768872641312,-1125.08,0.00013698,2]
[402739819,1768872641322,-1125.08,0.00013698,2]
[402739820,1768872641331,-1125.08,0.00013698,2]
[402739821,1768872641340,-1125.08,0.00013698,2]
[402739822,1768872641349,-1125.08,0.00013698,2]
[402739823,1768872641358,-1125.08,0.00013698,2]
[402739824,1768872641367,-1125.08,0.00013698,2]
[402739825,1768872641376,-1125.08,0.00013698,2]
[402739826,1768872641385,-1125.08,0.00013698,2]
[402739827,1768872641395,-1125.08,0.00013698,2]
[402739828,1768872641404,-1125.08,0.00013698,2]
[402739829,1768872641416,-1125.08,0.00013698,2]
[402739830,1768872641435,-1125.08,0.00013698,2]
[402739831,1768872641455,-1125.08,0.00013698,2]
[402739832,1768872641470,-1125.08,0.00013698,2]
[402739833,1768872641487,-1125.08,0.00013698,2]
[402739834,1768872641506,-1125.08,0.00013698,2]
[402739835,1768872641516,-1125.08,0.00013698,2]
[402739836,1768872641525,-1125.08,0.00013698,2]
[402739837,1768872641534,-1125.08,0.00013698,2]
[402739838,1768872641543,-1125.08,0.00013698,2]
[402739839,1768872641552,-1125.08,0.00013698,2]
[402739840,1768872641563,-1125.09480251,0.00013698,2]
[402739841,1768872641574,-500.0,0.00013698,2]
[402739842,1768872641584,-525.94044439,0.00013698,2]
[402739843,1768872641593,-505.79259852,0.00013698,2]
[402739844,1768872641603,-2916.45,0.00013698,2]
[402739845,1768872641614,-2916.45,0.00013698,2]
[402739846,1768872641624,-2916.45,0.00013698,2]
[402739847,1768872641635,-2916.45,0.00013698,2]
[402739848,1768872641646,-2916.45,0.00013698,2]
[402739849,1768872641656,-2916.45,0.00013698,2]
[402739850,1768872641667,-2916.45,0.00013698,2]
[402739851,1768872641677,-2916.45,0.00013698,2]
[402739852,1768872641688,-2916.45,0.00013698,2]
[402739853,1768872641698,-2916.45,0.00013698,2]
[402739854,1768872641710,-2916.45,0.00013698,2]
[402739855,1768872641721,-2916.45,0.00013698,2]
[402739856,1768872641731,-2916.45,0.00013698,2]
[402739857,1768872641740,-2916.45,0.00013698,2]
[402739858,1768872641750,-2916.45,0.00013698,2]
[402739859,1768872641760,-2916.45,0.00013698,2]
[402739860,1768872641770,-2916.45,0.00013698,2]
[402739861,1768872641780,-2916.45,0.00013698,2]
[402739862,1768872641790,-2916.45,0.00013698,2]
[402739863,1768872641800,-2916.45,0.00013698,2]
[402739864,1768872641810,-2916.45,0.00013698,2]
[402739865,1768872641821,-2916.45,0.00013698,2]
[402739866,1768872641831,-2916.45,0.00013698,2]
[402739867,1768872641842,-2916.63,0.00013698,2]
[402739868,1768872641853,-1294.54,0.00013698,2]
[402739869,1768872641862,-1294.54,0.00013698,2]
[402739870,1768872641871,-1294.54,0.00013698,2]
[402739871,1768872641880,-1294.54,0.00013698,2]
[402739872,1768872641890,-1294.54,0.00013698,2]
[402739873,1768872641899,-1294.54,0.00013698,2]
[402739874,1768872641907,-1294.54,0.00013698,2]
[402739875,1768872641916,-1294.54,0.00013698,2]
[402739876,1768872641926,-1294.54,0.00013698,2]
[402739877,1768872641935,-1294.54,0.00013698,2]
[402739878,1768872641947,-1294.54,0.00013698,2]
[402739879,1768872641958,-1294.54,0.00013698,2]
[402739880,1768872641968,-1294.54,0.00013698,2]
[402739881,1768872641978,-1294.54,0.00013698,2]
[402739882,1768872641988,-1294.54,0.00013698,2]
[402739883,1768872641999,-1294.54,0.00013698,2]
[402739884,1768872642010,-1294.54,0.00013698,2]
[402739885,1768872642019,-1294.54,0.00013698,2]
[402739886,1768872642029,-1294.54,0.00013698,2]
[402739887,1768872642039,-1294.54,0.00013698,2]
[402739888,1768872642049,-1294.54,0.00013698,2]
[402739889,1768872642060,-1294.54,0.00013698,2]
[402739890,1768872642070,-1294.54,0.00013698,2]
[402739891,1768872642081,-1294.55108337,0.00013698,2]
[402739892,1768872642091,-500.0,0.00013698,2]
[402739893,1768872642101,-500.0,0.00013698,2]
[402739894,1768872642111,-500.0,0.00013698,2]
[402739895,1768872642120,-500.0,0.00013698,2]
[402739896,1768872642129,-1719.21,0.00013698,2]
[402739897,1768872642138,-500.0,0.00013698,2]
[402739898,1768872642148,-1719.21,0.00013698,2]
[402739899,1768872642158,-227.13490997,0.00013698,2]
[402739900,1768872642167,-1719.21,0.00013698,2]
[402739901,1768872642178,-1719.21,0.00013698,2]
[402739902,1768872642187,-1719.21,0.00013698,2]
[402739903,1768872642197,-1719.21,0.00013698,2]
[402739904,1768872642207,-1719.21,0.00013698,2]
[402739905,1768872642218,-1719.21,0.00013698,2]
[402739906,1768872642229,-1719.21,0.00013698,2]
[402739907,1768872642238,-1719.21,0.00013698,2]
[402739908,1768872642249,-1719.21,0.00013698,2]
[402739909,1768872642260,-1719.21,0.00013698,2]
[402739910,1768872642271,-1719.21,0.00013698,2]
[402739911,1768872642281,-1719.21,0.00013698,2]
[402739912,1768872642290,-1719.21,0.00013698,2]
[402739913,1768872642300,-1719.21,0.00013698,2]
[402739914,1768872642310,-1719.21,0.00013698,2]
[402739915,1768872642320,-1719.21,0.00013698,2]
[402739916,1768872642329,-1719.21,0.00013698,2]
[402739917,1768872642339,-1719.21,0.00013698,2]
[402739918,1768872642349,-1719.21,0.00013698,2]
[402739919,1768872642358,-1719.21,0.00013698,2]
[402739920,1768872642367,-1719.21,0.00013698,2]
[402739921,1768872642377,-1719.21064892,0.00013698,2]
[402739922,1768872642386,-180.0306052,0.00013699,2]
[402739923,1768872642395,-101655.3488431,0.00013699,2]
[402739924,1768872642404,-609.373676,0.00013699,2]
[402739925,1768872642414,-7831.4961507,0.00013699,2]
[402739926,1768872642423,-1000.0,0.00013699,2]
[402739927,1768872642432,-1137.148227,0.00013699,2]
[402739928,1768872642442,-1137.148227,0.00013699,2]
[402739929,1768872642451,-1137.148227,0.00013699,2]
[402739930,1768872642459,-1137.148227,0.00013699,2]
[402739931,1768872642469,-501.16924635,0.00013699,2]
[402739932,1768872642478,-167.82088,0.00013699,7]
[402739933,1768872642487,-500.0,0.00013699,2]
[402739934,1768872642496,-162.68977902,0.00013699,2]
[402739935,1768872642507,-500.0,0.00013699,2]
[402739936,1768872642518,-500.0,0.00013699,2]
[402739937,1768872642529,-500.0,0.00013699,2]
[402739938,1768872642538,-500.87460552,0.00013699,2]
[402739939,1768872642548,-500.0,0.00013699,2]
[402739940,1768872642558,-500.69464349,0.00013699,2]
[402739941,1768872642568,-500.0,0.00013699,2]
[402739942,1768872642580,-500.94122469,0.00013699,2]
[402739943,1768872642590,-500.0,0.00013699,2]
[402739944,1768872642602,-500.0,0.00013699,2]
[402739945,1768872642612,-607.30660115,0.00013699,2]
[402739946,1768872642622,-500.0,0.00013699,2]
[402739947,1768872642634,-500.0,0.00013699,2]
[402739948,1768872642647,-158.03037538,0.00013699,2]
[402739949,1768872642657,-400.01480379,0.00013699,2]
[402739950,1768872642667,-500.0,0.00013699,2]
[402739951,1768872642677,-500.0,0.00013699,2]
[402739952,1768872642686,-500.0,0.00013699,2]
[402739953,1768872642696,-158.03033957,0.00013699,2]
[402739954,1768872642705,-172.71889011,0.00013699,2]
[402739955,1768872642716,-194.1362209,0.00013699,2]
[402739956,1768872642726,-500.0,0.00013699,2]
[402739957,1768872642735,-500.0,0.00013699,2]
[402739958,1768872642744,-500.0,0.00013699,2]
[402739960,1768872642754,-500.0,0.00013699,2]
[402739962,1768872642763,-500.0,0.00013699,2]
[402739963,1768872642773,-500.0,0.00013699,2]
[402739964,1768872642782,-500.0,0.00013699,2]
[402739965,1768872642791,-500.0,0.00013699,2]
[402739966,1768872642801,-500.0,0.00013699,2]
[402739967,1768872642810,-506.0812071,0.00013699,2]
[402739968,1768872642819,-151.0,0.00013699,2]
[402739971,1768872642828,-151.0,0.00013699,2]
[402739972,1768872642838,-151.0,0.00013699,2]
[402739973,1768872642848,-151.0,0.00013699,2]
[402739974,1768872642858,-500.0,0.00013699,2]
[402739975,1768872642867,-500.0,0.00013699,2]
[402739976,1768872642876,-470.97944282,0.00013699,2]
[402739977,1768872642886,-500.0,0.00013699,2]
[402739979,1768872642896,-1124952.33821417,0.0001372,2]
[402739982,1768872642918,-286.84,0.0001372,2]
[402739986,1768872643059,-8791.35635343,0.0001372,2]
[402739988,1768872643269,-3e-08,0.0001372,2]
[402739989,1768872643398,-1029.00146496,0.0001372,2]
[402739990,1768872646206,-5176.69488954,0.0001372,2]
[402739991,1768872646261,-379.1311,0.0001372,2]
[402740001,1768872666085,153.13207066,0.00027397,120]
[402740003,1768872704345,577.27,9.414e-05,2]
[402740004,1768872711017,18261.6065655,0.00027397,120]
[402740005,1768872732980,248.99,0.00027397,120]
[402740006,1768872748016,618.99144494,0.00027397,120]
[402740007,1768872753409,154.40708557,0.00027397,120]
[402740008,1768872757187,279.34743826,0.00027397,120]
[402740009,1768872767551,193.75378461,0.00027397,120]
[402740010,1768872767979,311.04586611,0.00027397,120]
[402740011,1768872768207,500.0,0.00027397,120]
[402740012,1768872768484,500.0,0.00027397,120]
[402740013,1768872768853,183.11725349,0.00027397,120]
[402740014,1768872771635,250.48695964,0.00027397,120]
[402740015,1768872778127,190.54489922,0.00027397,120]
[402740016,1768872783388,291.01128207,0.00027397,120]
[402740017,1768872786979,345.03141597,0.00027397,120]
[402740018,1768872795357,813.26,8.79e-05,2]
[402740019,1768872795781,1626.52,9.589e-05,2]
[402740020,1768872801545,281.08546831,0.00027397,120]
[402740021,1768872815867,393.74729554,0.00027397,120]
[402740022,1768872823042,265.02120403,0.00027397,120]
[402740023,1768872875427,782.21,8.773e-05,2]
[402740024,1768872875842,1564.41,9.571e-05,2]
[402740027,1768872957547,752.34,8.743e-05,2]
[402740028,1768872957960,1504.68,9.537e-05,2]
[402740029,1768873054780,723.62,8.764e-05,2]
[402740030,1768873055177,1447.23,9.561e-05,2]
[402740031,1768873080125,306.23,3.436e-05,2]
[402740032,1768873080486,201.39,3.436e-05,2]
[402740033,1768873080844,201.37,3.436e-05,2]
[402740034,1768873122440,152.70057798,0.00027397,120]
[402740035,1768873136297,695.99,8.756e-05,2]
[402740036,1768873136734,1391.97,9.552e-05,2]
[402740037,1768873152522,1000.0,0.00027,120]
[402740038,1768873171489,163.4281861,0.00027397,120]
[402740039,1768873217232,1000.0,9.6e-05,2]
[402740040,1768873218395,669.41,8.782e-05,2]
[402740041,1768873218789,1338.82,9.58e-05,2]
[402740042,1768873302062,643.85,8.773e-05,2]
[402740043,1768873302494,1287.71,9.571e-05,2]
[402740044,1768873383041,619.27,8.744e-05,2]
[402740045,1768873383942,1238.54,9.539e-05,2]
[402740046,1768873447394,161.16324355,0.0002,120]
[402740047,1768873475947,595.62,8.747e-05,2]
[402740048,1768873476875,1191.25,9.542e-05,2]
[402740049,1768873530226,3206.55307636,0.00027,120]
[402740050,1768873541235,264.15588079,0.00022124,120]
[402740052,1768873557278,572.88,8.737e-05,2]
[402740053,1768873558193,1145.77,9.531e-05,2]
[402740055,1768873640066,551.01,8.736e-05,2]
[402740056,1768873640485,1102.02,9.53e-05,2]
[402740058,1768873719763,529.97,8.735e-05,2]
[402740059,1768873720194,1059.94,9.529e-05,2]
[402740060,1768873804070,509.74,8.727e-05,2]
[402740061,1768873804505,1019.47,9.52e-05,2]
[402740112,1768873832384,-396.32496991,0.00010303,2]
[402740113,1768873832394,-979.57407595,0.00010313,2]
[402740114,1768873832407,-549.63592405,0.00010313,2]
[402740115,1768873832417,-173.9162361,0.00010314,2]
[402740116,1768873832427,-159.62665953,0.00010373,2]
[402740117,1768873832436,-213.0,0.00010522,2]
[402740118,1768873832445,-159.62665952,0.00010694,2]
[402740119,1768873832454,-419.9,0.000107,2]
[402740120,1768873832464,-188.77088192,0.00010799,2]
[402740160,1768873838347,-1011.22911808,0.00010799,2]
[402740162,1768873838357,-1000.0,0.000108,2]
[402740164,1768873838367,-151.0,0.00011,2]
[402740166,1768873838377,-151.0,0.00011,2]
[402740168,1768873838387,-159.62665953,0.00011025,2]
[402740170,1768873838397,-2038.94,0.00011107,2]
[402740173,1768873838407,-300.0,0.00011117,2]
[402740175,1768873838417,-300.0,0.00011117,2]
[402740177,1768873838427,-185.0,0.00011117,2]
[402740179,1768873838437,-300.0,0.00011117,2]
[402740181,1768873838447,-1000.0,0.000112,3]
[402740184,1768873838457,-159.62665952,0.00011366,2]
[402740186,1768873838467,-500.0,0.00011417,2]
[402740188,1768873838477,-282.57501083,0.00011417,2]
[402740190,1768873838487,-294.37798719,0.00011417,2]
[402740193,1768873838496,-1957.856,0.00011417,2]
[402740195,1768873838506,-173.86513209,0.00011417,2]
[402740197,1768873838516,-163.42153372,0.00011417,2]
[402740199,1768873838526,-162.380719,0.00011417,2]
[402740201,1768873838538,-168.3888056,0.00011417,2]
[402740203,1768873838548,-162.380719,0.00011417,2]
[402740205,1768873838558,-174.61919141,0.00011417,2]
[402740207,1768873838567,-181.08010149,0.00011417,2]
[402740209,1768873838578,-187.78006525,0.00011417,2]
[402740211,1768873838587,-194.72792766,0.00011417,2]
[402740213,1768873838596,-2150.738,0.00011417,2]
[402740215,1768873838605,-201.93286099,0.00011417,2]
[402740217,1768873838617,-209.40437684,0.00011417,2]
[402740219,1768873838626,-217.15233878,0.00011417,2]
[402740220,1768873838636,-225.18697532,0.00011417,2]
[402740221,1768873838646,-233.51889341,0.00011417,2]
[402740222,1768873838656,-242.15909246,0.00011417,2]
[402740223,1768873838666,-251.11897888,0.00011417,2]
[402740224,1768873838676,-260.4103811,0.00011417,2]
[402740225,1768873838686,-270.0455652,0.00011417,2]
[402740227,1768873838696,-280.03725112,0.00011417,2]
[402740229,1768873838705,-290.39862941,0.00011417,2]
[402740230,1768873838715,-301.1433787,0.00011417,2]
[402740232,1768873838725,-445.202766,0.00011417,2]
[402740233,1768873838735,-2030.296672,0.00011472,2]
[402740234,1768873838745,-5090.20924766,0.00011518,2]
[402740236,1768873838755,-2105.41764886,0.00011527,2]
[402740238,1768873838765,-2183.31810187,0.00011582,2]
[402740239,1768873838775,-319.0,0.00011582,2]
[402740240,1768873838785,-2264.10087164,0.00011637,2]
[402740241,1768873838795,-500.0,0.00011691,2]
[402740242,1768873838805,-160.83170676,0.00011691,2]
[402740244,1768873838815,-2347.87260389,0.00011692,2]
[402740245,1768873838825,-159.62665953,0.00011725,2]
[402740246,1768873838834,-2434.74389024,0.00011747,2]
[402740247,1768873838844,-563.51624991,0.00011757,2]
[402740248,1768873838854,-2524.82941417,0.00011802,2]
[402740249,1768873838864,-2618.2481025,0.00011857,2]
[402740250,1768873838875,-198.96,0.00011874,2]
[402740251,1768873838885,-1680.0,0.00011879,2]
[402740252,1768873838895,-2548.68,0.000119,2]
[402740253,1768873838905,-2715.12328229,0.00011912,2]
[402740254,1768873838916,-500.0,0.00011965,2]
[402740255,1768873838926,-168.3888056,0.00011965,2]
[402740256,1768873838936,-2230.315306,0.00011965,2]
[402740257,1768873838947,-461.67526834,0.00011965,2]
[402740258,1768873838958,-2815.58284374,0.00011967,2]
[402740259,1768873838968,-1000.0,0.00012,2]
[402740260,1768873838979,-2919.75940895,0.00012022,2]
[402740261,1768873838989,-3027.79050709,0.00012077,2]
[402740262,1768873838999,-159.62665952,0.00012087,2]
[402740263,1768873839009,-5686.33955505,0.00012099,2]
[402740264,1768873839019,-3139.81875585,0.00012132,2]
[402740265,1768873839028,-3255.99204981,0.00012187,2]
[402740266,1768873839038,-420.0,0.00012215,2]
[402740267,1768873839049,-420.0,0.00012215,2]
[402740268,1768873839059,-420.0,0.00012215,2]
[402740269,1768873839069,-773.002,0.00012229,2]
[402740270,1768873839079,-2154.459,0.00012229,2]
[402740271,1768873839089,-150.37,0.00012229,2]
[402740272,1768873839099,-150.076,0.00012229,2]
[402740273,1768873839108,-150.369,0.00012229,2]
[402740274,1768873839117,-500.0,0.00012239,2]
[402740275,1768873839127,-3376.46375566,0.00012242,2]
[402740276,1768873839138,-2091.62231471,0.00012297,2]
[402740277,1768873839148,-467.6634645,0.00012303,2]
[402740278,1768873839159,-5506.62,0.00012329,2]
[402740279,1768873839170,-4588.85,0.00012329,2]
[402740280,1768873839180,-3824.04,0.00012329,2]
[402740281,1768873839190,-3186.7,0.00012329,2]
[402740282,1768873839201,-2655.58,0.00012329,2]
[402740283,1768873839211,-2212.99,0.00012329,2]
[402740284,1768873839221,-1844.16,0.00012329,2]
[402740285,1768873839231,-1536.8,0.00012329,2]
[402740286,1768873839242,-1280.66,0.00012329,2]
[402740287,1768873839252,-1067.22,0.00012329,2]
[402740288,1768873839262,-889.35,0.00012329,2]
[402740289,1768873839272,-741.12,0.00012329,2]
[402740290,1768873839281,-617.6,0.00012329,2]
[402740291,1768873839291,-514.67,0.00012329,2]
[402740292,1768873839301,-428.89,0.00012329,2]
[402740293,1768873839311,-428.89,0.00012329,2]
[402740294,1768873839320,-285.93,0.00012329,2]
[402740295,1768873839331,-238.27,0.00012329,2]
[402740296,1768873839341,-198.56,0.00012329,2]
[402740297,1768873839351,-165.47,0.00012329,2]
[402740298,1768873839361,-827.37,0.00012329,2]
[402740299,1768873839372,-1304.87,0.00012462,2]
[402740300,1768873839382,-500.0,0.00012513,2]
[402740301,1768873839392,-174.61919141,0.00012513,2]
[402740302,1768873839403,-2312.83697232,0.00012513,2]
[402740303,1768873839413,-478.75725327,0.00012513,2]
[402740304,1768873839423,-3058.41,0.00012693,2]
[402740305,1768873839432,-500.0,0.00012787,2]
[402740306,1768873839443,-1000.0,0.000128,4]
[402740307,1768873839452,-1000.0,0.000128,5]
[402740308,1768873839462,-160.0,0.00012804,2]
[402740309,1768873839473,-1041.66666667,0.00012804,2]
[402740310,1768873839483,-62987.0737744,0.0001282,2]
[402740311,1768873839493,-729.0,0.00012893,2]
[402740312,1768873839502,-779.0,0.000129,2]
[402740313,1768873839513,-14564.37259996,0.000129,2]
[402740314,1768873839522,-1000.0,0.00012999,2]
[402740315,1768873839536,-500.0,0.00013061,2]
[402740316,1768873839546,-181.08010149,0.00013061,2]
[402740317,1768873839555,-2398.4119403,0.00013061,2]
[402740318,1768873839565,-496.47127164,0.00013061,2]
[402740319,1768873839576,-2351.0,0.00013067,2]
[402740320,1768873839585,-500.0,0.00013252,2]
[402740321,1768873839595,-500.0,0.00013273,2]
[402740322,1768873839607,-500.65159175,0.00013273,2]
[402740323,1768873839618,-514.22909233,0.00013273,2]
[402740324,1768873839628,-500.44441304,0.00013273,2]
[402740325,1768873839638,-500.7911164,0.00013273,2]
[402740326,1768873839648,-283.82405284,0.00013273,2]
[402740327,1768873839658,-500.83350839,0.00013273,2]
[402740328,1768873839667,-502.25914102,0.00013273,2]
[402740329,1768873839677,-500.87867221,0.00013273,2]
[402740330,1768873839687,-501.21191706,0.00013273,2]
[402740331,1768873839697,-500.0,0.00013273,2]
[402740332,1768873839706,-548.62899052,0.00013273,2]
[402740333,1768873839716,-264.62653308,0.00013273,2]
[402740334,1768873839725,-501.04408585,0.00013273,2]
[402740335,1768873839735,-501.14775372,0.00013273,2]
[402740336,1768873839745,-500.0,0.00013273,2]
[402740337,1768873839755,-501.16877104,0.00013273,2]
[402740338,1768873839764,-500.0,0.00013273,2]
[402740339,1768873839774,-500.0,0.00013273,2]
[402740340,1768873839783,-500.0,0.00013273,2]
[402740341,1768873839792,-217.40750351,0.00013273,2]
[402740342,1768873839801,-500.0,0.00013273,2]
[402740343,1768873839810,-500.0,0.00013273,2]
[402740344,1768873839820,-500.0,0.00013273,2]
[402740345,1768873839829,-500.0,0.00013273,2]
[402740346,1768873839839,-165.8003176,0.00013273,2]
[402740347,1768873839849,-501.15703421,0.00013273,2]
[402740348,1768873839858,-218.29013,0.00013273,2]
[402740349,1768873839868,-501.17173594,0.00013273,2]
[402740350,1768873839878,-500.65936208,0.00013273,2]
[402740351,1768873839888,-503.58398624,0.00013273,2]
[402740352,1768873839899,-500.0,0.00013273,2]
[402740353,1768873839908,-501.12366089,0.00013273,2]
[402740354,1768873839918,-501.52515084,0.00013273,2]
[402740355,1768873839927,-500.0,0.00013273,2]
[402740356,1768873839937,-500.0,0.00013273,2]
[402740357,1768873839947,-500.0,0.00013273,2]
[402740358,1768873839957,-156.67219213,0.00013273,2]
[402740360,1768873839967,-501.20262158,0.00013273,2]
[402740362,1768873839977,-505.78880887,0.00013273,2]
[402740364,1768873839987,-503.39647699,0.00013273,2]
[402740366,1768873839997,-164.2137581,0.00013273,2]
[402740368,1768873840007,-305.34302164,0.00013273,2]
[402740369,1768873840018,-500.0,0.00013273,2]
[402740370,1768873840032,-500.43959266,0.00013273,2]
[402740371,1768873840042,-500.0,0.00013273,2]
[402740372,1768873840052,-500.0,0.00013273,2]
[402740373,1768873840062,-171.87560824,0.00013273,2]
[402740375,1768873840072,-500.90973917,0.00013273,2]
[402740377,1768873840081,-500.0,0.00013335,2]
[402740379,1768873840091,-729.0,0.0001334,2]
[402740380,1768873840101,-200.0,0.0001335,2]
[402740382,1768873840111,-3876.0,0.0001336,2]
[402740384,1768873840120,-800.0,0.00013393,2]
[402740386,1768873840130,-800.0,0.00013411,2]
[402740388,1768873840139,-800.0,0.00013413,2]
[402740390,1768873840149,-583.0,0.00013421,2]
[402740391,1768873840159,-587.0,0.00013421,2]
[402740392,1768873840168,-587.0,0.00013421,2]
[402740393,1768873840179,-800.0,0.00013427,2]
[402740394,1768873840189,-600.0,0.00013439,2]
[402740395,1768873840198,-344.51460362,0.00013441,2]
[402740396,1768873840208,-800.0,0.00013447,2]
[402740397,1768873840217,-745.0,0.00013463,2]
[402740398,1768873840227,-800.0,0.00013465,2]
[402740400,1768873840238,-800.0,0.00013483,2]
[402740402,1768873840248,-800.0,0.00013486,2]
[402740403,1768873840257,-3568.15,0.00013487,2]
[402740404,1768873840267,-200.0,0.00013504,2]
[402740405,1768873840277,-7836.25319583,0.00013504,2]
[402740407,1768873840287,-800.0,0.00013508,2]
[402740409,1768873840296,-248.934512,0.00013508,2]
[402740411,1768873840306,-500.0,0.0001357,2]
[402740413,1768873840317,-800.0,0.00013574,2]
[402740414,1768873840327,-13559.0,0.000136,2]
[402740415,1768873840337,-500.0,0.00013609,2]
[402740417,1768873840347,-187.78006525,0.00013609,2]
[402740419,1768873840359,-2487.15318209,0.00013609,2]
[402740421,1768873840369,-514.84070869,0.00013609,2]
[402740423,1768873840379,-800.0,0.00013631,2]
[402740425,1768873840390,-800.0,0.00013663,2]
[402740427,1768873840400,-800.0,0.00013663,2]
[402740429,1768873840410,-300.0,0.00013673,2]
[402740431,1768873840421,-155.157,0.00013697,2]
[402740433,1768873840431,-500.0,0.00013698,2]
[402740435,1768873840441,-500.0,0.00013698,2]
[402740438,1768873840451,-500.85241185,0.00013698,2]